[Event "Titled Tuesday Blitz July 20 2021"]
[White "Dolzhykova, Kateryna"]
[Black "Pourkashiyan, Atousa"]
[WhiteFideId "14113414"]
[BlackFideId "12502014"]
[WhiteElo "2151"]
[BlackElo "2285"]
[Result "0-1"]
[Round "08"]
[TimeControl "180+1"]
[Date "2021.07.21"]
[WhiteClock "0:00:43"]
[BlackClock "0:01:01"]

1. e4 {[%clk 0:03:00]}  e5 {[%clk 0:02:59]} 2. Nf3 {[%clk 0:03:00]}  Nf6 {[%clk 0:02:59]} 3. Nxe5 {[%clk 0:02:59]}  d6 {[%clk 0:02:59]} 4. Nf3 {[%clk 0:02:59]}  Nxe4 {[%clk 0:02:59]} 5. d4 {[%clk 0:02:58]}  d5 {[%clk 0:02:59]} 6. Bd3 {[%clk 0:02:58]}  Nc6 {[%clk 0:02:58]} 7. O-O {[%clk 0:02:58]}  Be7 {[%clk 0:02:59]} 8. c4 {[%clk 0:02:58]}  Nb4 {[%clk 0:02:57]} 9. Nc3 {[%clk 0:02:57]}  Nxd3 {[%clk 0:02:56]} 10. Qxd3 {[%clk 0:02:56]}  Nxc3 {[%clk 0:02:51]} 11. bxc3 {[%clk 0:02:56]}  dxc4 {[%clk 0:02:45]} 12. Qxc4 {[%clk 0:02:54]}  O-O {[%clk 0:02:45]} 13. Bf4 {[%clk 0:02:54]}  c6 {[%clk 0:02:44]} 14. Rfe1 {[%clk 0:02:32]}  Be6 {[%clk 0:02:33]} 15. Rxe6 {[%clk 0:02:28]}  fxe6 {[%clk 0:02:34]} 16. Qxe6+ {[%clk 0:02:28]}  Kh8 {[%clk 0:02:35]} 17. Be5 {[%clk 0:02:19]}  Bf6 {[%clk 0:02:35]} 18. Rb1 {[%clk 0:02:17]}  Qd5 {[%clk 0:02:08]} 19. Qxd5 {[%clk 0:02:16]}  cxd5 {[%clk 0:02:08]} 20. Rxb7 {[%clk 0:02:16]}  Bxe5 {[%clk 0:02:09]} 21. Nxe5 {[%clk 0:02:17]}  Rab8 {[%clk 0:02:09]} 22. Rxb8 {[%clk 0:01:50]}  Rxb8 {[%clk 0:02:10]} 23. g3 {[%clk 0:01:50]}  Rb2 {[%clk 0:02:07]} 24. a3 {[%clk 0:01:49]}  Ra2 {[%clk 0:02:05]} 25. c4 {[%clk 0:01:49]}  dxc4 {[%clk 0:01:55]} 26. Nxc4 {[%clk 0:01:50]}  Ra1+ {[%clk 0:01:45]} 27. Kg2 {[%clk 0:01:50]}  Rd1 {[%clk 0:01:45]} 28. Nb2 {[%clk 0:01:29]}  Rxd4 {[%clk 0:01:45]} 29. Kf3 {[%clk 0:01:29]}  Rd2 {[%clk 0:01:40]} 30. Nc4 {[%clk 0:01:29]}  Rc2 {[%clk 0:01:34]} 31. Ne5 {[%clk 0:01:01]}  Rc3+ {[%clk 0:01:31]} 32. Ke4 {[%clk 0:01:02]}  Rxa3 {[%clk 0:01:32]} 33. f4 {[%clk 0:01:02]}  a5 {[%clk 0:01:25]} 34. Nc4 {[%clk 0:00:59]}  Ra1 {[%clk 0:01:22]} 35. Kd3 {[%clk 0:00:58]}  a4 {[%clk 0:01:19]} 36. Kc2 {[%clk 0:00:45]}  Ra2+ {[%clk 0:01:16]} 37. Kc3 {[%clk 0:00:44]}  Rxh2 {[%clk 0:01:14]} 38. Kb4 {[%clk 0:00:44]}  Rg2 {[%clk 0:01:13]} 39. Kxa4 {[%clk 0:00:43]}  Rxg3 {[%clk 0:01:13]} 40. Ka5 {[%clk 0:00:44]}  Rf3 {[%clk 0:01:10]} 41. Kb5 {[%clk 0:00:43]}  Rxf4 {[%clk 0:01:10]} 42. Ne3 {[%clk 0:00:44]}  Re4 {[%clk 0:01:03]} 43. Ng2 {[%clk 0:00:42]}  g5 {[%clk 0:01:01]} 44. Kc5 {[%clk 0:00:43]}  Re2 {[%clk 0:01:01]} 0-1


[Site "https://www.chess.com"]

[Event "Titled Tuesday Blitz July 20 2021"]
[White "Wagner, Dinara"]
[Black "Chen, Max"]
[WhiteFideId "24157570"]
[BlackFideId "2622440"]
[WhiteElo "2260"]
[BlackElo "2439"]
[Result "0-1"]
[Round "08"]
[TimeControl "180+1"]
[Date "2021.07.21"]
[WhiteClock "0:00:15"]
[BlackClock "0:00:12"]

1. d4 {[%clk 0:02:59]}  Nf6 {[%clk 0:01:13]} 2. c4 {[%clk 0:02:58]}  g6 {[%clk 0:01:11]} 3. Nf3 {[%clk 0:02:58]}  Bg7 {[%clk 0:01:11]} 4. g3 {[%clk 0:02:58]}  O-O {[%clk 0:01:11]} 5. Bg2 {[%clk 0:02:59]}  d5 {[%clk 0:01:12]} 6. cxd5 {[%clk 0:02:59]}  Nxd5 {[%clk 0:01:13]} 7. O-O {[%clk 0:02:59]}  Nb6 {[%clk 0:01:13]} 8. e3 {[%clk 0:03:00]}  Nc6 {[%clk 0:01:12]} 9. Nc3 {[%clk 0:03:00]}  Re8 {[%clk 0:01:13]} 10. Nh4 {[%clk 0:03:00]}  e5 {[%clk 0:01:13]} 11. d5 {[%clk 0:03:00]}  Na5 {[%clk 0:01:12]} 12. Rb1 {[%clk 0:02:56]}  Nac4 {[%clk 0:01:12]} 13. b3 {[%clk 0:02:54]}  Nd6 {[%clk 0:01:11]} 14. e4 {[%clk 0:02:54]}  f5 {[%clk 0:01:09]} 15. Ba3 {[%clk 0:02:50]}  f4 {[%clk 0:01:05]} 16. Nf3 {[%clk 0:02:42]}  g5 {[%clk 0:01:02]} 17. h3 {[%clk 0:02:39]}  h5 {[%clk 0:01:00]} 18. Nh2 {[%clk 0:02:39]}  g4 {[%clk 0:00:55]} 19. hxg4 {[%clk 0:02:39]}  fxg3 {[%clk 0:00:55]} 20. fxg3 {[%clk 0:02:37]}  hxg4 {[%clk 0:00:53]} 21. Nxg4 {[%clk 0:02:24]}  Qg5 {[%clk 0:00:52]} 22. Nh2 {[%clk 0:02:04]}  Qe3+ {[%clk 0:00:51]} 23. Kh1 {[%clk 0:01:54]}  Qxc3 {[%clk 0:00:51]} 24. Rc1 {[%clk 0:01:54]}  Qa5 {[%clk 0:00:48]} 25. Bc5 {[%clk 0:01:45]}  Bd7 {[%clk 0:00:45]} 26. Qh5 {[%clk 0:01:42]}  Rf8 {[%clk 0:00:42]} 27. Ng4 {[%clk 0:01:29]}  Rxf1+ {[%clk 0:00:38]} 28. Rxf1 {[%clk 0:01:28]}  Rf8 {[%clk 0:00:39]} 29. Nh6+ {[%clk 0:01:17]}  Bxh6 {[%clk 0:00:37]} 30. Qxh6 {[%clk 0:01:14]}  Rxf1+ {[%clk 0:00:37]} 31. Bxf1 {[%clk 0:01:15]}  Qxc5 {[%clk 0:00:38]} 32. Qg6+ {[%clk 0:01:10]}  Kf8 {[%clk 0:00:38]} 33. Qh6+ {[%clk 0:01:10]}  Ke7 {[%clk 0:00:35]} 34. Qg5+ {[%clk 0:01:10]}  Kf7 {[%clk 0:00:31]} 35. Be2 {[%clk 0:01:07]}  Nxe4 {[%clk 0:00:13]} 36. Bh5+ {[%clk 0:01:03]}  Kf8 {[%clk 0:00:12]} 37. Qh6+ {[%clk 0:00:33]}  Ke7 {[%clk 0:00:11]} 38. Qg7+ {[%clk 0:00:34]}  Kd6 {[%clk 0:00:10]} 39. Qf8+ {[%clk 0:00:34]}  Kxd5 {[%clk 0:00:10]} 40. Bf7+ {[%clk 0:00:24]}  Kc6 {[%clk 0:00:10]} 41. Qh6+ {[%clk 0:00:22]}  Qd6 {[%clk 0:00:10]} 42. Qc1+ {[%clk 0:00:23]}  Nc5 {[%clk 0:00:09]} 43. Qe3 {[%clk 0:00:22]}  Qd4 {[%clk 0:00:09]} 44. Qf3+ {[%clk 0:00:21]}  Qe4 {[%clk 0:00:09]} 45. Qxe4+ {[%clk 0:00:20]}  Nxe4 {[%clk 0:00:10]} 46. Kg2 {[%clk 0:00:20]}  Nd6 {[%clk 0:00:10]} 47. Bg6 {[%clk 0:00:21]}  a5 {[%clk 0:00:10]} 48. Bd3 {[%clk 0:00:21]}  Bf5 {[%clk 0:00:10]} 49. Be2 {[%clk 0:00:21]}  a4 {[%clk 0:00:10]} 50. g4 {[%clk 0:00:21]}  Bg6 {[%clk 0:00:10]} 51. g5 {[%clk 0:00:21]}  axb3 {[%clk 0:00:11]} 52. axb3 {[%clk 0:00:22]}  Kc5 {[%clk 0:00:11]} 53. Kf2 {[%clk 0:00:21]}  Kb4 {[%clk 0:00:12]} 54. Bd1 {[%clk 0:00:21]}  Nb5 {[%clk 0:00:11]} 55. Ke3 {[%clk 0:00:21]}  Nd4 {[%clk 0:00:12]} 56. Kd2 {[%clk 0:00:18]}  Nxb3+ {[%clk 0:00:12]} 57. Ke2 {[%clk 0:00:19]}  Nd4+ {[%clk 0:00:12]} 58. Kd2 {[%clk 0:00:19]}  c5 {[%clk 0:00:12]} 59. Ke3 {[%clk 0:00:19]}  Nd5+ {[%clk 0:00:12]} 60. Kd2 {[%clk 0:00:19]}  c4 {[%clk 0:00:12]} 61. Kc1 {[%clk 0:00:19]}  c3 {[%clk 0:00:12]} 62. Bg4 {[%clk 0:00:16]}  Nb3+ {[%clk 0:00:12]} 63. Kd1 {[%clk 0:00:16]}  c2+ {[%clk 0:00:12]} 64. Ke2 {[%clk 0:00:17]}  c1=Q {[%clk 0:00:12]} 65. Bf5 {[%clk 0:00:17]}  Qd2+ {[%clk 0:00:12]} 66. Kf3 {[%clk 0:00:17]}  Qf4+ {[%clk 0:00:12]} 67. Ke2 {[%clk 0:00:16]}  Nc3+ {[%clk 0:00:12]} 68. Kd3 {[%clk 0:00:15]}  Qd4+ {[%clk 0:00:12]} 69. Kc2 {[%clk 0:00:15]}  Qd2# {[%clk 0:00:12]} 0-1


[Site "https://www.chess.com"]

[Event "Titled Tuesday Blitz July 20 2021"]
[White "Dzierzak, Radoslaw"]
[Black "Ovchinnikov, Vsevolod"]
[WhiteFideId "1161407"]
[BlackFideId "24176842"]
[WhiteElo "2019"]
[BlackElo "2376"]
[Result "1-0"]
[Round "08"]
[TimeControl "180+1"]
[Date "2021.07.21"]
[WhiteClock "0:00:19"]
[BlackClock "0:00:09"]

1. e4 {[%clk 0:03:00]}  g6 {[%clk 0:02:58]} 2. Nf3 {[%clk 0:03:00]}  Bg7 {[%clk 0:02:59]} 3. Bc4 {[%clk 0:02:58]}  d6 {[%clk 0:02:59]} 4. h3 {[%clk 0:02:54]}  Nf6 {[%clk 0:02:59]} 5. Nc3 {[%clk 0:02:53]}  O-O {[%clk 0:03:00]} 6. Bb3 {[%clk 0:02:52]}  c5 {[%clk 0:02:54]} 7. O-O {[%clk 0:02:46]}  Nc6 {[%clk 0:02:54]} 8. a3 {[%clk 0:02:40]}  Nd4 {[%clk 0:02:51]} 9. Ba2 {[%clk 0:02:40]}  Bd7 {[%clk 0:02:48]} 10. Re1 {[%clk 0:02:39]}  Bc6 {[%clk 0:02:38]} 11. Nxd4 {[%clk 0:02:37]}  cxd4 {[%clk 0:02:39]} 12. Nd5 {[%clk 0:02:37]}  Nd7 {[%clk 0:02:27]} 13. Nb4 {[%clk 0:02:26]}  Ba4 {[%clk 0:02:21]} 14. b3 {[%clk 0:02:22]}  Bc6 {[%clk 0:02:16]} 15. Nxc6 {[%clk 0:02:20]}  bxc6 {[%clk 0:02:17]} 16. d3 {[%clk 0:02:08]}  a5 {[%clk 0:02:17]} 17. Bd2 {[%clk 0:02:09]}  e6 {[%clk 0:01:59]} 18. Qe2 {[%clk 0:02:02]}  Qb6 {[%clk 0:01:55]} 19. b4 {[%clk 0:01:59]}  axb4 {[%clk 0:01:53]} 20. axb4 {[%clk 0:01:59]}  Ra7 {[%clk 0:01:47]} 21. Bb3 {[%clk 0:01:56]}  Rfa8 {[%clk 0:01:47]} 22. Rxa7 {[%clk 0:01:54]}  Rxa7 {[%clk 0:01:47]} 23. Rb1 {[%clk 0:01:52]}  Qc7 {[%clk 0:01:16]} 24. Qe1 {[%clk 0:01:49]}  Bf8 {[%clk 0:01:09]} 25. Ra1 {[%clk 0:01:48]}  Qb8 {[%clk 0:01:04]} 26. Ra5 {[%clk 0:01:47]}  Rb7 {[%clk 0:00:48]} 27. Ba4 {[%clk 0:01:18]}  Qc7 {[%clk 0:00:39]} 28. Qa1 {[%clk 0:01:00]}  Bg7 {[%clk 0:00:30]} 29. Ra6 {[%clk 0:00:58]}  Rb6 {[%clk 0:00:30]} 30. Bb3 {[%clk 0:00:54]}  Rxa6 {[%clk 0:00:27]} 31. Qxa6 {[%clk 0:00:53]}  Bf8 {[%clk 0:00:26]} 32. Ba4 {[%clk 0:00:51]}  Nb6 {[%clk 0:00:22]} 33. Bb3 {[%clk 0:00:44]}  h5 {[%clk 0:00:20]} 34. b5 {[%clk 0:00:40]}  cxb5 {[%clk 0:00:20]} 35. Ba5 {[%clk 0:00:39]}  Qc8 {[%clk 0:00:15]} 36. Qxb6 {[%clk 0:00:39]}  Qa8 {[%clk 0:00:11]} 37. Qd8 {[%clk 0:00:29]}  Qxd8 {[%clk 0:00:10]} 38. Bxd8 {[%clk 0:00:28]}  Kg7 {[%clk 0:00:10]} 39. Kf1 {[%clk 0:00:27]}  e5 {[%clk 0:00:08]} 40. Bd5 {[%clk 0:00:25]}  f6 {[%clk 0:00:07]} 41. Ba5 {[%clk 0:00:22]}  Be7 {[%clk 0:00:07]} 42. Bc6 {[%clk 0:00:22]}  d5 {[%clk 0:00:07]} 43. exd5 {[%clk 0:00:20]}  Bd6 {[%clk 0:00:08]} 44. Bxb5 {[%clk 0:00:19]}  f5 {[%clk 0:00:08]} 45. Bc6 {[%clk 0:00:19]}  Kf6 {[%clk 0:00:09]} 46. Ke2 {[%clk 0:00:19]}  g5 {[%clk 0:00:09]} 47. c4 {[%clk 0:00:18]}  dxc3 {[%clk 0:00:08]} 48. Bxc3 {[%clk 0:00:19]}  f4 {[%clk 0:00:09]} 49. f3 {[%clk 0:00:19]}  Kf5 {[%clk 0:00:08]} 50. d4 {[%clk 0:00:17]}  e4 {[%clk 0:00:07]} 51. Bd7+ {[%clk 0:00:18]}  Kg6 {[%clk 0:00:07]} 52. fxe4 {[%clk 0:00:18]}  Bf8 {[%clk 0:00:07]} 53. Bf5+ {[%clk 0:00:18]}  Kh6 {[%clk 0:00:07]} 54. e5 {[%clk 0:00:18]}  g4 {[%clk 0:00:07]} 55. hxg4 {[%clk 0:00:18]}  hxg4 {[%clk 0:00:08]} 56. Bxg4 {[%clk 0:00:18]}  Kg5 {[%clk 0:00:09]} 57. Kf3 {[%clk 0:00:19]}  Bg7 {[%clk 0:00:09]} 58. Bd2 {[%clk 0:00:19]} 1-0


[Site "https://www.chess.com"]

[Event "Titled Tuesday Blitz July 20 2021"]
[White "FGHSMN"]
[Black "Tomaszewski, Kacper"]
[BlackFideId "1127373"]
[WhiteElo "2529"]
[BlackElo "2162"]
[Result "1-0"]
[Round "08"]
[TimeControl "180+1"]
[Date "2021.07.21"]
[WhiteClock "0:01:24"]
[BlackClock "0:01:18"]

1. e4 {[%clk 0:02:57]}  d6 {[%clk 0:03:00]} 2. d4 {[%clk 0:02:56]}  Nf6 {[%clk 0:03:01]} 3. Nc3 {[%clk 0:02:55]}  e5 {[%clk 0:03:01]} 4. Nf3 {[%clk 0:02:51]}  Nbd7 {[%clk 0:03:01]} 5. g4 {[%clk 0:02:49]}  g6 {[%clk 0:02:59]} 6. g5 {[%clk 0:02:48]}  Nh5 {[%clk 0:02:59]} 7. Bh3 {[%clk 0:02:45]}  exd4 {[%clk 0:02:54]} 8. Nxd4 {[%clk 0:02:43]}  Bg7 {[%clk 0:02:54]} 9. Bg4 {[%clk 0:02:33]}  Nc5 {[%clk 0:02:44]} 10. Bxh5 {[%clk 0:02:31]}  gxh5 {[%clk 0:02:44]} 11. Nf5 {[%clk 0:02:31]}  Bxc3+ {[%clk 0:02:41]} 12. bxc3 {[%clk 0:02:29]}  Nxe4 {[%clk 0:02:36]} 13. Qd4 {[%clk 0:02:27]}  Bxf5 {[%clk 0:02:30]} 14. Qxh8+ {[%clk 0:02:24]}  Kd7 {[%clk 0:02:30]} 15. Qxd8+ {[%clk 0:02:23]}  Rxd8 {[%clk 0:02:30]} 16. c4 {[%clk 0:02:21]}  Re8 {[%clk 0:02:22]} 17. Be3 {[%clk 0:02:09]}  Nxg5 {[%clk 0:02:21]} 18. O-O-O {[%clk 0:02:08]}  Bg4 {[%clk 0:02:05]} 19. Bxg5 {[%clk 0:02:02]}  Bxd1 {[%clk 0:02:02]} 20. Rxd1 {[%clk 0:02:03]}  Re4 {[%clk 0:02:00]} 21. c5 {[%clk 0:02:00]}  Ra4 {[%clk 0:01:49]} 22. cxd6 {[%clk 0:01:57]}  cxd6 {[%clk 0:01:47]} 23. Kb2 {[%clk 0:01:55]}  Rb4+ {[%clk 0:01:48]} 24. Ka3 {[%clk 0:01:52]}  Rb5 {[%clk 0:01:45]} 25. Bf4 {[%clk 0:01:48]}  d5 {[%clk 0:01:45]} 26. c4 {[%clk 0:01:45]}  Ra5+ {[%clk 0:01:45]} 27. Kb3 {[%clk 0:01:44]}  Kc6 {[%clk 0:01:41]} 28. Rxd5 {[%clk 0:01:43]}  Rxd5 {[%clk 0:01:41]} 29. cxd5+ {[%clk 0:01:44]}  Kxd5 {[%clk 0:01:41]} 30. Be3 {[%clk 0:01:42]}  a6 {[%clk 0:01:39]} 31. f3 {[%clk 0:01:42]}  h4 {[%clk 0:01:39]} 32. h3 {[%clk 0:01:38]}  a5 {[%clk 0:01:32]} 33. Ka4 {[%clk 0:01:34]}  Kc4 {[%clk 0:01:32]} 34. Kxa5 {[%clk 0:01:34]}  Kd3 {[%clk 0:01:32]} 35. Bg5 {[%clk 0:01:34]}  Ke2 {[%clk 0:01:32]} 36. Kb6 {[%clk 0:01:33]}  Kxf3 {[%clk 0:01:32]} 37. Bxh4 {[%clk 0:01:33]}  Kg2 {[%clk 0:01:32]} 38. Kxb7 {[%clk 0:01:33]}  Kxh3 {[%clk 0:01:32]} 39. Bf6 {[%clk 0:01:33]}  Kg4 {[%clk 0:01:30]} 40. a4 {[%clk 0:01:34]}  h5 {[%clk 0:01:30]} 41. a5 {[%clk 0:01:33]}  h4 {[%clk 0:01:30]} 42. a6 {[%clk 0:01:30]}  h3 {[%clk 0:01:31]} 43. Be5 {[%clk 0:01:28]}  f6 {[%clk 0:01:23]} 44. Bb8 {[%clk 0:01:25]}  f5 {[%clk 0:01:21]} 45. a7 {[%clk 0:01:24]}  f4 {[%clk 0:01:18]} 46. a8=Q {[%clk 0:01:24]}  h2 {[%clk 0:01:18]} 47. Qa1 {[%clk 0:01:24]} 1-0


[Site "https://www.chess.com"]

[Event "Titled Tuesday Blitz July 20 2021"]
[White "Gabrielian, Artur"]
[Black "Lagunow, Raphael"]
[WhiteFideId "4131002"]
[BlackFideId "24652644"]
[WhiteElo "2523"]
[BlackElo "2400"]
[Result "1/2-1/2"]
[Round "08"]
[TimeControl "180+1"]
[Date "2021.07.21"]
[WhiteClock "0:00:18"]
[BlackClock "0:00:04"]

1. d4 {[%clk 0:03:00]}  d5 {[%clk 0:02:59]} 2. c4 {[%clk 0:03:00]}  e6 {[%clk 0:02:59]} 3. Nf3 {[%clk 0:03:00]}  Nf6 {[%clk 0:02:59]} 4. g3 {[%clk 0:03:00]}  dxc4 {[%clk 0:02:57]} 5. Qa4+ {[%clk 0:02:57]}  Nbd7 {[%clk 0:02:37]} 6. Qxc4 {[%clk 0:02:47]}  a6 {[%clk 0:02:38]} 7. Bg2 {[%clk 0:02:45]}  b5 {[%clk 0:02:28]} 8. Qd3 {[%clk 0:02:40]}  Bb7 {[%clk 0:02:17]} 9. O-O {[%clk 0:02:39]}  c5 {[%clk 0:02:16]} 10. a4 {[%clk 0:02:37]}  Qb6 {[%clk 0:02:06]} 11. axb5 {[%clk 0:02:33]}  axb5 {[%clk 0:02:06]} 12. Rxa8+ {[%clk 0:02:33]}  Bxa8 {[%clk 0:02:07]} 13. dxc5 {[%clk 0:02:27]}  Nxc5 {[%clk 0:02:04]} 14. Qa3 {[%clk 0:02:24]}  Na4 {[%clk 0:01:50]} 15. Qa1 {[%clk 0:02:19]}  Bb7 {[%clk 0:01:44]} 16. b3 {[%clk 0:02:14]}  Nc5 {[%clk 0:01:43]} 17. Be3 {[%clk 0:02:14]}  Nd5 {[%clk 0:01:34]} 18. b4 {[%clk 0:02:03]}  Nxb4 {[%clk 0:01:25]} 19. Nbd2 {[%clk 0:01:56]}  Nd5 {[%clk 0:00:55]} 20. Bd4 {[%clk 0:01:49]}  Qa6 {[%clk 0:00:32]} 21. Bxg7 {[%clk 0:01:29]}  Qxa1 {[%clk 0:00:32]} 22. Bxa1 {[%clk 0:01:29]}  Rg8 {[%clk 0:00:32]} 23. Rb1 {[%clk 0:01:29]}  b4 {[%clk 0:00:20]} 24. Nd4 {[%clk 0:01:18]}  Bg7 {[%clk 0:00:03]} 25. e4 {[%clk 0:01:15]}  Nc3 {[%clk 0:00:02]} 26. Rxb4 {[%clk 0:01:12]}  Bxd4 {[%clk 0:00:01]} 27. Rxd4 {[%clk 0:01:07]}  Ne2+ {[%clk 0:00:01]} 28. Kf1 {[%clk 0:01:08]}  Nxd4 {[%clk 0:00:02]} 29. Bxd4 {[%clk 0:01:09]}  Nd7 {[%clk 0:00:02]} 30. Ke2 {[%clk 0:01:05]}  f6 {[%clk 0:00:03]} 31. Bc3 {[%clk 0:01:01]}  Ke7 {[%clk 0:00:03]} 32. Bb4+ {[%clk 0:01:00]}  Kf7 {[%clk 0:00:04]} 33. Ke3 {[%clk 0:01:00]}  Ne5 {[%clk 0:00:03]} 34. f4 {[%clk 0:00:59]}  Ng4+ {[%clk 0:00:04]} 35. Ke2 {[%clk 0:00:56]}  Nxh2 {[%clk 0:00:05]} 36. Kf2 {[%clk 0:00:50]}  Ng4+ {[%clk 0:00:05]} 37. Ke2 {[%clk 0:00:50]}  Nh6 {[%clk 0:00:04]} 38. Kf2 {[%clk 0:00:48]}  Ng4+ {[%clk 0:00:04]} 39. Ke2 {[%clk 0:00:48]}  f5 {[%clk 0:00:03]} 40. Bf3 {[%clk 0:00:45]}  Nf6 {[%clk 0:00:03]} 41. exf5 {[%clk 0:00:44]}  Bxf3+ {[%clk 0:00:04]} 42. Nxf3 {[%clk 0:00:42]}  exf5 {[%clk 0:00:05]} 43. Ng5+ {[%clk 0:00:41]}  Kg6 {[%clk 0:00:05]} 44. Nf3 {[%clk 0:00:39]}  Re8+ {[%clk 0:00:05]} 45. Ne5+ {[%clk 0:00:37]}  Kh5 {[%clk 0:00:05]} 46. Kf3 {[%clk 0:00:38]}  Ng4 {[%clk 0:00:05]} 47. Bd6 {[%clk 0:00:34]}  Nxe5+ {[%clk 0:00:04]} 48. fxe5 {[%clk 0:00:33]}  Kg5 {[%clk 0:00:03]} 49. Bc7 {[%clk 0:00:28]}  h5 {[%clk 0:00:03]} 50. Bd6 {[%clk 0:00:29]}  Re6 {[%clk 0:00:03]} 51. Bc7 {[%clk 0:00:29]}  Re8 {[%clk 0:00:03]} 52. Bd6 {[%clk 0:00:29]}  Rc8 {[%clk 0:00:03]} 53. Be7+ {[%clk 0:00:29]}  Kg6 {[%clk 0:00:03]} 54. Bd6 {[%clk 0:00:27]}  Rc3+ {[%clk 0:00:03]} 55. Kf4 {[%clk 0:00:27]}  Rc4+ {[%clk 0:00:03]} 56. Kf3 {[%clk 0:00:27]}  Kf7 {[%clk 0:00:04]} 57. Bb8 {[%clk 0:00:26]}  Ke6 {[%clk 0:00:04]} 58. Bd6 {[%clk 0:00:26]}  Re4 {[%clk 0:00:04]} 59. Bb8 {[%clk 0:00:22]}  Kd5 {[%clk 0:00:04]} 60. Kg2 {[%clk 0:00:21]}  Rg4 {[%clk 0:00:03]} 61. Kh3 {[%clk 0:00:20]}  Ke6 {[%clk 0:00:03]} 62. Bd6 {[%clk 0:00:19]}  Kd5 {[%clk 0:00:03]} 63. Bc7 {[%clk 0:00:19]}  Re4 {[%clk 0:00:03]} 64. Bd6 {[%clk 0:00:19]}  Kc4 {[%clk 0:00:03]} 65. Bc7 {[%clk 0:00:18]}  Kd3 {[%clk 0:00:04]} 66. Kg2 {[%clk 0:00:18]}  Ke2 {[%clk 0:00:04]} 67. Bd6 {[%clk 0:00:18]}  h4 {[%clk 0:00:02]} 68. gxh4 {[%clk 0:00:18]}  f4 {[%clk 0:00:02]} 69. Bc5 {[%clk 0:00:15]}  f3+ {[%clk 0:00:03]} 70. Kg3 {[%clk 0:00:15]}  Rxe5 {[%clk 0:00:03]} 71. Bb6 {[%clk 0:00:15]}  Re6 {[%clk 0:00:02]} 72. Bc5 {[%clk 0:00:16]}  Rg6+ {[%clk 0:00:03]} 73. Kf4 {[%clk 0:00:16]}  f2 {[%clk 0:00:04]} 74. Bxf2 {[%clk 0:00:16]}  Kxf2 {[%clk 0:00:05]} 75. h5 {[%clk 0:00:16]}  Rg1 {[%clk 0:00:05]} 76. h6 {[%clk 0:00:16]}  Ke2 {[%clk 0:00:04]} 77. Kf5 {[%clk 0:00:16]}  Rh1 {[%clk 0:00:03]} 78. Kg6 {[%clk 0:00:16]}  Rg1+ {[%clk 0:00:04]} 79. Kf6 {[%clk 0:00:16]}  Rh1 {[%clk 0:00:04]} 80. Kg6 {[%clk 0:00:17]}  Rg1+ {[%clk 0:00:05]} 81. Kf6 {[%clk 0:00:17]}  Kf3 {[%clk 0:00:04]} 82. h7 {[%clk 0:00:17]}  Rh1 {[%clk 0:00:04]} 83. Kg7 {[%clk 0:00:18]}  Rxh7+ {[%clk 0:00:04]} 84. Kxh7 {[%clk 0:00:18]} 1/2-1/2


[Site "https://www.chess.com"]

[Event "Titled Tuesday Blitz July 20 2021"]
[White "Gelman, Alexander"]
[Black "Siva Mahadevan"]
[WhiteFideId "4118316"]
[BlackFideId "25043153"]
[WhiteElo "2375"]
[BlackElo "2203"]
[Result "0-1"]
[Round "08"]
[TimeControl "180+1"]
[Date "2021.07.20"]
[WhiteClock "0:00:08"]
[BlackClock "0:00:55"]

1. d4 {[%clk 0:03:00]}  Nf6 {[%clk 0:02:59]} 2. Nc3 {[%clk 0:03:01]}  d5 {[%clk 0:02:59]} 3. Bf4 {[%clk 0:03:01]}  g6 {[%clk 0:02:59]} 4. e3 {[%clk 0:03:01]}  Bg7 {[%clk 0:02:59]} 5. h4 {[%clk 0:03:02]}  O-O {[%clk 0:02:59]} 6. h5 {[%clk 0:03:02]}  c5 {[%clk 0:03:00]} 7. hxg6 {[%clk 0:03:01]}  hxg6 {[%clk 0:03:01]} 8. Qd2 {[%clk 0:02:56]}  Nc6 {[%clk 0:03:00]} 9. f3 {[%clk 0:02:56]}  cxd4 {[%clk 0:02:25]} 10. exd4 {[%clk 0:02:56]}  Nh5 {[%clk 0:02:25]} 11. Bh6 {[%clk 0:02:13]}  Bxh6 {[%clk 0:02:11]} 12. Qxh6 {[%clk 0:02:12]}  Qd6 {[%clk 0:02:12]} 13. Nge2 {[%clk 0:01:31]}  Qf6 {[%clk 0:01:45]} 14. O-O-O {[%clk 0:01:16]}  Rd8 {[%clk 0:01:33]} 15. Rh2 {[%clk 0:00:58]}  Qg7 {[%clk 0:01:30]} 16. Qe3 {[%clk 0:00:57]}  e5 {[%clk 0:01:28]} 17. g4 {[%clk 0:00:53]}  exd4 {[%clk 0:01:27]} 18. Nxd4 {[%clk 0:00:54]}  Nf6 {[%clk 0:01:25]} 19. Bb5 {[%clk 0:00:43]}  Bxg4 {[%clk 0:01:24]} 20. Bxc6 {[%clk 0:00:38]}  bxc6 {[%clk 0:01:22]} 21. Nxc6 {[%clk 0:00:39]}  Re8 {[%clk 0:01:18]} 22. Ne7+ {[%clk 0:00:24]}  Kf8 {[%clk 0:01:18]} 23. fxg4 {[%clk 0:00:20]}  Rxe7 {[%clk 0:01:17]} 24. Qc5 {[%clk 0:00:20]}  Re8 {[%clk 0:01:14]} 25. Re2 {[%clk 0:00:16]}  Nd7 {[%clk 0:01:11]} 26. Qb4 {[%clk 0:00:14]}  Nb6 {[%clk 0:01:00]} 27. Rxd5 {[%clk 0:00:12]}  Nxd5 {[%clk 0:00:56]} 28. Nxd5 {[%clk 0:00:12]}  Qh6+ {[%clk 0:00:56]} 29. Kd1 {[%clk 0:00:10]}  Qh1+ {[%clk 0:00:56]} 30. Kd2 {[%clk 0:00:10]}  Qxd5+ {[%clk 0:00:57]} 31. Kc1 {[%clk 0:00:10]}  Kg8 {[%clk 0:00:55]} 32. Rxe7 {[%clk 0:00:08]}  Qg5+ {[%clk 0:00:55]} 0-1


[Site "https://www.chess.com"]

[Event "Titled Tuesday Blitz July 20 2021"]
[White "Golubev, Mikhail"]
[Black "Borsuk, Konstantin"]
[WhiteFideId "14100983"]
[BlackFideId "14113406"]
[WhiteElo "2374"]
[BlackElo "2363"]
[Result "1-0"]
[Round "08"]
[TimeControl "180+1"]
[Date "2021.07.21"]
[WhiteClock "0:00:09"]
[BlackClock "0:00:05"]

1. e4 {[%clk 0:03:00]}  e6 {[%clk 0:02:53]} 2. Nc3 {[%clk 0:03:01]}  d5 {[%clk 0:02:49]} 3. d4 {[%clk 0:03:01]}  Bb4 {[%clk 0:02:48]} 4. e5 {[%clk 0:03:02]}  b6 {[%clk 0:02:46]} 5. a3 {[%clk 0:03:00]}  Bf8 {[%clk 0:02:46]} 6. Bb5+ {[%clk 0:02:56]}  c6 {[%clk 0:02:46]} 7. Ba4 {[%clk 0:02:56]}  Ne7 {[%clk 0:02:37]} 8. Nf3 {[%clk 0:02:51]}  Nf5 {[%clk 0:02:37]} 9. Ne2 {[%clk 0:02:50]}  h5 {[%clk 0:02:36]} 10. O-O {[%clk 0:02:47]}  Be7 {[%clk 0:02:35]} 11. Re1 {[%clk 0:02:37]}  g5 {[%clk 0:02:32]} 12. c3 {[%clk 0:02:35]}  Rg8 {[%clk 0:01:56]} 13. Bc2 {[%clk 0:02:32]}  Qc7 {[%clk 0:01:48]} 14. Bxf5 {[%clk 0:02:18]}  exf5 {[%clk 0:01:49]} 15. Ng3 {[%clk 0:02:18]}  g4 {[%clk 0:01:25]} 16. Nd2 {[%clk 0:02:17]}  Rh8 {[%clk 0:01:19]} 17. Ndf1 {[%clk 0:02:17]}  Be6 {[%clk 0:01:15]} 18. Qc2 {[%clk 0:02:07]}  Qc8 {[%clk 0:01:10]} 19. Ne2 {[%clk 0:02:01]}  Nd7 {[%clk 0:01:10]} 20. Nf4 {[%clk 0:01:55]}  Nf8 {[%clk 0:01:07]} 21. Ng3 {[%clk 0:01:40]}  Ng6 {[%clk 0:01:02]} 22. Nge2 {[%clk 0:01:32]}  Qd7 {[%clk 0:00:57]} 23. a4 {[%clk 0:01:17]}  h4 {[%clk 0:00:49]} 24. b3 {[%clk 0:01:13]}  Rc8 {[%clk 0:00:43]} 25. c4 {[%clk 0:00:53]}  Kf8 {[%clk 0:00:39]} 26. cxd5 {[%clk 0:00:50]}  cxd5 {[%clk 0:00:38]} 27. Qd3 {[%clk 0:00:49]}  Kg7 {[%clk 0:00:37]} 28. Be3 {[%clk 0:00:38]}  Rb8 {[%clk 0:00:26]} 29. Rec1 {[%clk 0:00:37]}  b5 {[%clk 0:00:26]} 30. a5 {[%clk 0:00:35]}  a6 {[%clk 0:00:25]} 31. Rc2 {[%clk 0:00:33]}  Rbc8 {[%clk 0:00:25]} 32. Rac1 {[%clk 0:00:33]}  Rxc2 {[%clk 0:00:24]} 33. Rxc2 {[%clk 0:00:33]}  Bd8 {[%clk 0:00:15]} 34. Qd2 {[%clk 0:00:31]}  Be7 {[%clk 0:00:14]} 35. Qc1 {[%clk 0:00:25]}  Bd8 {[%clk 0:00:10]} 36. Rc6 {[%clk 0:00:15]}  Nf8 {[%clk 0:00:08]} 37. Rxa6 {[%clk 0:00:15]}  h3 {[%clk 0:00:07]} 38. Ng3 {[%clk 0:00:13]}  hxg2 {[%clk 0:00:06]} 39. Kxg2 {[%clk 0:00:13]}  Qe7 {[%clk 0:00:05]} 40. Nfh5+ {[%clk 0:00:10]}  Rxh5 {[%clk 0:00:04]} 41. Nxh5+ {[%clk 0:00:09]}  Kh8 {[%clk 0:00:05]} 42. Nf6 {[%clk 0:00:09]} 1-0


[Site "https://www.chess.com"]